[Event "*** Titled Tuesday Blitz"]
[Site "Chess.com"]
[Date "2020.04.21"]
[Round "2"]
[White "Skatchkov_V"]
[Black "yavrukurt40"]
[Result "1-0"]
[WhiteElo "2561"]
[BlackElo "2779"]
[TimeControl "180+1"]
[EndTime "10:18:12 PDT"]
[Termination "Skatchkov_V won by checkmate"]

1. d4 {[%clk 0:03:00]} 1... g6 {[%clk 0:02:59.6]} 2. Nf3 {[%clk 0:02:59.9]} 2...
Bg7 {[%clk 0:02:59.8]} 3. c4 {[%clk 0:03:00.3]} 3... d6 {[%clk 0:03:00.1]} 4. g3
{[%clk 0:03:00.4]} 4... Nd7 {[%clk 0:03:00.1]} 5. Bg2 {[%clk 0:03:01]} 5... e5
{[%clk 0:03:00.8]} 6. O-O {[%clk 0:03:01.4]} 6... exd4 {[%clk 0:02:59.9]} 7.
Nxd4 {[%clk 0:03:01.3]} 7... Ne7 {[%clk 0:03:00.8]} 8. Nc3 {[%clk 0:02:56.9]}
8... O-O {[%clk 0:03:00.8]} 9. e4 {[%clk 0:02:53.4]} 9... Nc6 {[%clk 0:03:00.8]}
10. Nde2 {[%clk 0:02:53.8]} 10... Nde5 {[%clk 0:02:46]} 11. b3 {[%clk
0:02:50.9]} 11... f5 {[%clk 0:02:46.4]} 12. f4 {[%clk 0:01:44]} 12... Ng4 {[%clk
0:02:44.9]} 13. h3 {[%clk 0:01:42.3]} 13... Nf6 {[%clk 0:02:45.1]} 14. exf5
{[%clk 0:01:34.6]} 14... Bxf5 {[%clk 0:02:44.4]} 15. Bb2 {[%clk 0:01:32.8]}
15... Qe7 {[%clk 0:02:02.1]} 16. Qd2 {[%clk 0:01:21.1]} 16... Rae8 {[%clk
0:01:49.1]} 17. Rae1 {[%clk 0:01:21.7]} 17... Qf7 {[%clk 0:01:49.1]} 18. Nd5
{[%clk 0:01:21.8]} 18... Ne4 {[%clk 0:01:45]} 19. Qc1 {[%clk 0:01:15]} 19... Nc5
{[%clk 0:01:40.4]} 20. Bxg7 {[%clk 0:00:59.1]} 20... Qxg7 {[%clk 0:01:41.3]} 21.
Qd2 {[%clk 0:00:54.1]} 21... Nd3 {[%clk 0:01:25.2]} 22. Rd1 {[%clk 0:00:53.8]}
22... Nd4 {[%clk 0:01:25.1]} 23. Nxd4 {[%clk 0:00:49.5]} 23... Qxd4+ {[%clk
0:01:26]} 24. Kh2 {[%clk 0:00:50.3]} 24... Qg7 {[%clk 0:01:02]} 25. g4 {[%clk
0:00:50.2]} 25... Nb2 {[%clk 0:01:01.7]} 26. Rc1 {[%clk 0:00:38.9]} 26... Be4
{[%clk 0:00:55.7]} 27. Bxe4 {[%clk 0:00:37.5]} 27... Rxe4 {[%clk 0:00:56.6]} 28.
Rc2 {[%clk 0:00:37.9]} 28... Rfe8 {[%clk 0:00:57.1]} 29. Rxb2 {[%clk 0:00:27.5]}
29... c6 {[%clk 0:00:56.6]} 30. Nc3 {[%clk 0:00:26.5]} 30... Re3 {[%clk
0:00:57.1]} 31. Nd1 {[%clk 0:00:21.9]} 31... R3e4 {[%clk 0:00:53.1]} 32. Nf2
{[%clk 0:00:19.2]} 32... Re3 {[%clk 0:00:53]} 33. Nd1 {[%clk 0:00:14.4]} 33...
R3e4 {[%clk 0:00:52.2]} 34. Rf2 {[%clk 0:00:14.4]} 34... Re1 {[%clk 0:00:51.9]}
35. Qd3 {[%clk 0:00:14]} 35... Qf6 {[%clk 0:00:49]} 36. Rbe2 {[%clk 0:00:13.4]}
36... Qa1 {[%clk 0:00:46.4]} 37. Rxe8+ {[%clk 0:00:11]} 37... Rxe8 {[%clk
0:00:47.3]} 38. Re2 {[%clk 0:00:08.4]} 38... Rf8 {[%clk 0:00:46]} 39. Nf2 {[%clk
0:00:08.7]} 39... Rxf4 {[%clk 0:00:45.4]} 40. Qe3 {[%clk 0:00:08.5]} 40... Rf8
{[%clk 0:00:43.7]} 41. Nd3 {[%clk 0:00:08.4]} 41... Kh8 {[%clk 0:00:39.2]} 42.
Rf2 {[%clk 0:00:07.2]} 42... Kg8 {[%clk 0:00:31.2]} 43. Qe6+ {[%clk 0:00:06.4]}
43... Kg7 {[%clk 0:00:31.6]} 44. Qe7+ {[%clk 0:00:05.8]} 44... Kh6 {[%clk
0:00:32.3]} 45. Qxf8+ {[%clk 0:00:05.9]} 45... Kg5 {[%clk 0:00:32.8]} 46. Qf4+
{[%clk 0:00:05.9]} 46... Kh4 {[%clk 0:00:33.7]} 47. g5+ {[%clk 0:00:05.9]} 47...
Kh5 {[%clk 0:00:34.6]} 48. Qg4# {[%clk 0:00:06.1]} 1-0

[Event "*** Titled Tuesday Blitz"]
[Site "Chess.com"]
[Date "2020.04.21"]
[Round "2"]
[White "Azatnew"]
[Black "bilelou"]
[Result "0-1"]
[WhiteElo "2776"]
[BlackElo "2572"]
[TimeControl "180+1"]
[EndTime "10:18:14 PDT"]
[Termination "bilelou won by resignation"]

1. Nf3 {[%clk 0:03:00.9]} 1... Nf6 {[%clk 0:02:59.8]} 2. g3 {[%clk 0:03:01.1]}
2... c5 {[%clk 0:02:59.9]} 3. Bg2 {[%clk 0:03:01.8]} 3... Nc6 {[%clk 0:02:59.9]}
4. O-O {[%clk 0:03:02.7]} 4... e5 {[%clk 0:02:59.4]} 5. c4 {[%clk 0:03:03]} 5...
d5 {[%clk 0:02:58.4]} 6. cxd5 {[%clk 0:03:02.8]} 6... Nxd5 {[%clk 0:02:58.9]} 7.
Nc3 {[%clk 0:03:03.4]} 7... Nc7 {[%clk 0:02:56.7]} 8. d3 {[%clk 0:03:03.1]} 8...
Be7 {[%clk 0:02:53.8]} 9. Ne1 {[%clk 0:03:03.4]} 9... Bd7 {[%clk 0:02:46.7]} 10.
Nc2 {[%clk 0:03:03.6]} 10... O-O {[%clk 0:02:46.2]} 11. a3 {[%clk 0:03:03.4]}
11... Rb8 {[%clk 0:02:45.7]} 12. Rb1 {[%clk 0:03:02]} 12... Nd4 {[%clk
0:02:43.4]} 13. b4 {[%clk 0:02:58.9]} 13... cxb4 {[%clk 0:02:42]} 14. axb4
{[%clk 0:02:58.7]} 14... Bc6 {[%clk 0:02:42.5]} 15. Nxd4 {[%clk 0:02:35.6]}
15... exd4 {[%clk 0:02:38]} 16. Ne4 {[%clk 0:02:34.1]} 16... Nb5 {[%clk
0:02:33.8]} 17. Bf4 {[%clk 0:02:33.1]} 17... Rc8 {[%clk 0:02:33.1]} 18. Qb3
{[%clk 0:02:30.9]} 18... Bxe4 {[%clk 0:01:44]} 19. dxe4 {[%clk 0:02:24.1]} 19...
Nc3 {[%clk 0:01:36.6]} 20. Rb2 {[%clk 0:02:24.1]} 20... Qb6 {[%clk 0:01:30.2]}
21. Ra1 {[%clk 0:02:21.3]} 21... a6 {[%clk 0:01:13.3]} 22. Bf3 {[%clk
0:02:21.4]} 22... Nb5 {[%clk 0:01:06.4]} 23. e5 {[%clk 0:02:18.2]} 23... Rfd8
{[%clk 0:01:02.8]} 24. Qd3 {[%clk 0:02:09.9]} 24... Rc3 {[%clk 0:01:01.1]} 25.
Qe4 {[%clk 0:02:10]} 25... Rc7 {[%clk 0:01:01.3]} 26. Rd1 {[%clk 0:01:51.9]}
26... Nc3 {[%clk 0:01:00.2]} 27. Qd3 {[%clk 0:01:52]} 27... Nxd1 {[%clk
0:01:00]} 28. Qxd1 {[%clk 0:01:52.9]} 28... Bxb4 {[%clk 0:00:58.7]} 29. e6
{[%clk 0:01:52.5]} 29... Re7 {[%clk 0:00:55.7]} 30. exf7+ {[%clk 0:01:52.7]}
30... Rxf7 {[%clk 0:00:56.6]} 31. Qb3 {[%clk 0:01:51.2]} 31... a5 {[%clk
0:00:54.8]} 32. Bd5 {[%clk 0:01:51.4]} 32... Rxd5 {[%clk 0:00:54.4]} 33. Qxd5
{[%clk 0:01:52.3]} 33... Qc6 {[%clk 0:00:46.1]} 34. Qe5 {[%clk 0:01:11.3]} 34...
h6 {[%clk 0:00:19.7]} 35. Rb1 {[%clk 0:00:58.9]} 35... Bc3 {[%clk 0:00:19.6]}
36. Qb8+ {[%clk 0:00:57.5]} 36... Kh7 {[%clk 0:00:19.2]} 37. Qa8 {[%clk
0:00:56.1]} 37... Qe4 {[%clk 0:00:13.9]} 38. Rf1 {[%clk 0:00:38.1]} 38... g5
{[%clk 0:00:13.9]} 39. Bd6 {[%clk 0:00:33.3]} 39... Qxe2 {[%clk 0:00:14.2]} 40.
Qc8 {[%clk 0:00:29.8]} 40... Qf3 {[%clk 0:00:13.4]} 41. Qc4 {[%clk 0:00:23]}
41... Qf5 {[%clk 0:00:11.9]} 42. f4 {[%clk 0:00:20.8]} 42... b5 {[%clk
0:00:12.3]} 43. Qa2 {[%clk 0:00:19.2]} 43... b4 {[%clk 0:00:12.4]} 44. Be5
{[%clk 0:00:16.2]} 44... d3 {[%clk 0:00:12.3]} 45. Qd5 {[%clk 0:00:15.2]} 45...
Bxe5 {[%clk 0:00:11.9]} 46. Qxa5 {[%clk 0:00:08.9]} 46... Bd4+ {[%clk
0:00:11.5]} 0-1

[Event "*** Titled Tuesday Blitz"]
[Site "Chess.com"]
[Date "2020.04.21"]
[Round "2"]
[White "letsgoband"]
[Black "kingofkolkata"]
[Result "1-0"]
[WhiteElo "2456"]
[BlackElo "2226"]
[TimeControl "180+1"]
[EndTime "10:18:14 PDT"]
[Termination "letsgoband won on time"]

1. e4 {[%clk 0:03:00.9]} 1... e5 {[%clk 0:03:00.1]} 2. Nf3 {[%clk 0:02:59.1]}
2... Nc6 {[%clk 0:03:00.6]} 3. Bb5 {[%clk 0:02:59.2]} 3... a6 {[%clk 0:03:00.5]}
4. Ba4 {[%clk 0:02:59.2]} 4... Nf6 {[%clk 0:02:59.6]} 5. O-O {[%clk 0:02:59.4]}
5... Be7 {[%clk 0:02:59.9]} 6. Re1 {[%clk 0:02:59.4]} 6... b5 {[%clk 0:03:00.3]}
7. Bb3 {[%clk 0:02:59.5]} 7... d6 {[%clk 0:03:00.9]} 8. c3 {[%clk 0:02:59.1]}
8... O-O {[%clk 0:03:00.6]} 9. h3 {[%clk 0:02:59.6]} 9... Bb7 {[%clk 0:03:01]}
10. d4 {[%clk 0:02:49.1]} 10... Re8 {[%clk 0:03:01]} 11. Nbd2 {[%clk 0:02:45.9]}
11... Bf8 {[%clk 0:03:00.9]} 12. Bc2 {[%clk 0:02:41.3]} 12... g6 {[%clk
0:02:50.6]} 13. Nf1 {[%clk 0:02:37.8]} 13... Bg7 {[%clk 0:02:50.3]} 14. Ng3
{[%clk 0:02:36.6]} 14... h6 {[%clk 0:02:49.9]} 15. a4 {[%clk 0:02:28.8]} 15...
exd4 {[%clk 0:02:18]} 16. cxd4 {[%clk 0:02:27.4]} 16... Nb4 {[%clk 0:02:17.7]}
17. Bb1 {[%clk 0:02:26.3]} 17... c5 {[%clk 0:02:18]} 18. Bd2 {[%clk 0:01:42.6]}
18... Nc6 {[%clk 0:02:05.8]} 19. d5 {[%clk 0:01:42.3]} 19... Ne5 {[%clk
0:01:58.9]} 20. Nxe5 {[%clk 0:01:42.3]} 20... Rxe5 {[%clk 0:01:58.7]} 21. Qb3
{[%clk 0:01:15.1]} 21... Qd7 {[%clk 0:01:53]} 22. axb5 {[%clk 0:00:59.9]} 22...
axb5 {[%clk 0:01:52.9]} 23. Rxa8+ {[%clk 0:01:00.5]} 23... Bxa8 {[%clk
0:01:53.8]} 24. Bc3 {[%clk 0:00:59.4]} 24... Re8 {[%clk 0:01:52.8]} 25. Bc2
{[%clk 0:00:45.8]} 25... Bb7 {[%clk 0:01:40.7]} 26. Ra1 {[%clk 0:00:45.4]} 26...
Ra8 {[%clk 0:01:40.1]} 27. Rxa8+ {[%clk 0:00:44.5]} 27... Bxa8 {[%clk 0:01:41]}
28. Qa2 {[%clk 0:00:44.7]} 28... Bb7 {[%clk 0:01:28.2]} 29. Qa7 {[%clk
0:00:37.9]} 29... Kh7 {[%clk 0:01:08.1]} 30. b4 {[%clk 0:00:27.6]} 30... c4
{[%clk 0:00:59.8]} 31. Qe3 {[%clk 0:00:23.6]} 31... Qe8 {[%clk 0:00:50.3]} 32.
Qd4 {[%clk 0:00:22.9]} 32... Nh5 {[%clk 0:00:31.8]} 33. Qe3 {[%clk 0:00:22.5]}
33... Nf6 {[%clk 0:00:31.7]} 34. Bd4 {[%clk 0:00:21.3]} 34... Nd7 {[%clk
0:00:25.2]} 35. Bxg7 {[%clk 0:00:20.2]} 35... Kxg7 {[%clk 0:00:25.7]} 36. f4
{[%clk 0:00:21.1]} 36... Qa8 {[%clk 0:00:20.5]} 37. Qd4+ {[%clk 0:00:21.1]}
37... f6 {[%clk 0:00:17.4]} 38. h4 {[%clk 0:00:20.6]} 38... h5 {[%clk
0:00:16.4]} 39. f5 {[%clk 0:00:20.4]} 39... Qa2 {[%clk 0:00:08]} 40. Qf2 {[%clk
0:00:18.8]} 40... Qa1+ {[%clk 0:00:04.9]} 41. Nf1 {[%clk 0:00:18.3]} 41... Qe5
{[%clk 0:00:04.1]} 42. fxg6 {[%clk 0:00:18.3]} 42... Nf8 {[%clk 0:00:01.3]} 43.
Ng3 {[%clk 0:00:18]} 43... Nxg6 {[%clk 0:00:01.8]} 44. Nf5+ {[%clk 0:00:17.5]}
44... Kf7 {[%clk 0:00:02]} 45. Qf3 {[%clk 0:00:17.6]} 45... Qf4 {[%clk
0:00:02.2]} 46. Qxh5 {[%clk 0:00:17.5]} 46... Qc1+ {[%clk 0:00:02.2]} 47. Kh2
{[%clk 0:00:17.7]} 47... Qf4+ {[%clk 0:00:01.7]} 48. Kh3 {[%clk 0:00:16.6]} 1-0

[Event "*** Titled Tuesday Blitz"]
[Site "Chess.com"]
[Date "2020.04.21"]
[Round "2"]
[White "CalinGheorghiu"]
[Black "GukeshDommaraju"]
[Result "0-1"]
[WhiteElo "2474"]
[BlackElo "2684"]
[TimeControl "180+1"]
[EndTime "10:18:15 PDT"]
[Termination "GukeshDommaraju won by resignation"]

1. e4 {[%clk 0:02:53.2]} 1... c5 {[%clk 0:02:59.6]} 2. Nf3 {[%clk 0:02:52.7]}
2... Nc6 {[%clk 0:02:59.6]} 3. Bb5 {[%clk 0:02:49.9]} 3... g6 {[%clk 0:02:59.4]}
4. O-O {[%clk 0:02:49.2]} 4... Bg7 {[%clk 0:02:59.2]} 5. Re1 {[%clk 0:02:47.7]}
5... e5 {[%clk 0:02:58.3]} 6. Bxc6 {[%clk 0:02:42.7]} 6... dxc6 {[%clk
0:02:58.4]} 7. a3 {[%clk 0:02:39.4]} 7... a5 {[%clk 0:02:48.7]} 8. a4 {[%clk
0:02:35.8]} 8... Qe7 {[%clk 0:02:47.5]} 9. d3 {[%clk 0:02:34.3]} 9... Nf6 {[%clk
0:02:47.3]} 10. Na3 {[%clk 0:02:29.4]} 10... Nd7 {[%clk 0:02:46.5]} 11. Nc4
{[%clk 0:02:23.1]} 11... O-O {[%clk 0:02:46.2]} 12. c3 {[%clk 0:02:13.7]} 12...
b6 {[%clk 0:02:41.2]} 13. Be3 {[%clk 0:02:02.8]} 13... Ba6 {[%clk 0:02:35.3]}
14. Qb3 {[%clk 0:01:59.1]} 14... Kh8 {[%clk 0:02:23.9]} 15. Rad1 {[%clk
0:01:47.3]} 15... Rab8 {[%clk 0:01:21.8]} 16. d4 {[%clk 0:01:35.8]} 16... exd4
{[%clk 0:01:14.7]} 17. cxd4 {[%clk 0:01:35.5]} 17... Qxe4 {[%clk 0:01:12.7]} 18.
Ng5 {[%clk 0:00:30.8]} 18... Qd5 {[%clk 0:00:45.8]} 19. dxc5 {[%clk 0:00:18.5]}
19... Nxc5 {[%clk 0:00:28.9]} 20. Bxc5 {[%clk 0:00:10.7]} 20... Bxc4 {[%clk
0:00:23.1]} 21. Rxd5 {[%clk 0:00:09.6]} 21... Bxb3 {[%clk 0:00:22.9]} 22. Bxf8
{[%clk 0:00:07.7]} 22... Bxd5 {[%clk 0:00:22.3]} 23. Bxg7+ {[%clk 0:00:04.7]}
23... Kxg7 {[%clk 0:00:23.2]} 24. f3 {[%clk 0:00:05.4]} 24... b5 {[%clk
0:00:22.3]} 25. axb5 {[%clk 0:00:05.2]} 25... Rxb5 {[%clk 0:00:20.3]} 26. Re2
{[%clk 0:00:05.2]} 26... h6 {[%clk 0:00:17]} 27. Ne4 {[%clk 0:00:04.9]} 27...
Bxe4 {[%clk 0:00:16.9]} 28. fxe4 {[%clk 0:00:05.8]} 28... Kf6 {[%clk 0:00:17.4]}
29. Kf2 {[%clk 0:00:06.4]} 29... Ke5 {[%clk 0:00:17.8]} 30. Ke3 {[%clk 0:00:05]}
30... Rb3+ {[%clk 0:00:17.9]} 31. Kf2 {[%clk 0:00:05.6]} 31... c5 {[%clk
0:00:18]} 32. h3 {[%clk 0:00:05.9]} 32... c4 {[%clk 0:00:18.1]} 33. Rc2 {[%clk
0:00:05.8]} 33... Rb4 {[%clk 0:00:17.6]} 34. Re2 {[%clk 0:00:05.6]} 34... Kd4
{[%clk 0:00:17]} 35. e5 {[%clk 0:00:05.3]} 35... Rb5 {[%clk 0:00:15.5]} 36. e6
{[%clk 0:00:04.8]} 36... Rf5+ {[%clk 0:00:15.3]} 37. Kg3 {[%clk 0:00:03.2]}
37... fxe6 {[%clk 0:00:15.6]} 38. Rxe6 {[%clk 0:00:03.7]} 38... Kd3 {[%clk
0:00:14.6]} 39. Rxg6 {[%clk 0:00:02.8]} 39... Rg5+ {[%clk 0:00:11]} 40. Rxg5
{[%clk 0:00:03.4]} 40... hxg5 {[%clk 0:00:11.9]} 41. Kg4 {[%clk 0:00:04]} 41...
Kc2 {[%clk 0:00:12.3]} 42. Kxg5 {[%clk 0:00:04.9]} 42... Kxb2 {[%clk 0:00:12.7]}
43. h4 {[%clk 0:00:05.8]} 43... c3 {[%clk 0:00:13.2]} 44. h5 {[%clk 0:00:06.5]}
44... c2 {[%clk 0:00:13.8]} 45. h6 {[%clk 0:00:06.8]} 45... c1=Q+ {[%clk
0:00:14.3]} 46. Kg6 {[%clk 0:00:07.4]} 46... Qc3 {[%clk 0:00:14.5]} 47. Kf7
{[%clk 0:00:06.4]} 47... Qh8 {[%clk 0:00:13.9]} 0-1

[Event "*** Titled Tuesday Blitz"]
[Site "Chess.com"]
[Date "2020.04.21"]
[Round "2"]
[White "Firegrizzly"]
[Black "SARGISMV"]
[Result "1-0"]
[WhiteElo "2677"]
[BlackElo "2440"]
[TimeControl "180+1"]
[EndTime "10:18:16 PDT"]
[Termination "Firegrizzly won by resignation"]

1. d4 {[%clk 0:03:00.9]} 1... Nf6 {[%clk 0:02:59.5]} 2. Nf3 {[%clk 0:03:01.3]}
2... c5 {[%clk 0:02:59.6]} 3. d5 {[%clk 0:02:59.3]} 3... e6 {[%clk 0:02:59.5]}
4. Nc3 {[%clk 0:02:58.1]} 4... exd5 {[%clk 0:02:57.7]} 5. Nxd5 {[%clk 0:02:59]}
5... Nxd5 {[%clk 0:02:58.3]} 6. Qxd5 {[%clk 0:02:59.3]} 6... Be7 {[%clk
0:02:58.4]} 7. e4 {[%clk 0:02:58.1]} 7... Nc6 {[%clk 0:02:57.6]} 8. c3 {[%clk
0:02:57.4]} 8... O-O {[%clk 0:02:57.5]} 9. Bf4 {[%clk 0:02:56.8]} 9... d6 {[%clk
0:02:55.4]} 10. h3 {[%clk 0:02:51.4]} 10... Be6 {[%clk 0:02:55.2]} 11. Qd2
{[%clk 0:02:50.7]} 11... d5 {[%clk 0:02:50.9]} 12. exd5 {[%clk 0:02:49.1]} 12...
Qxd5 {[%clk 0:02:50.5]} 13. Be2 {[%clk 0:02:48]} 13... Rad8 {[%clk 0:02:41.1]}
14. Qxd5 {[%clk 0:02:43.8]} 14... Bxd5 {[%clk 0:02:40.4]} 15. O-O {[%clk
0:02:44.2]} 15... Rfe8 {[%clk 0:02:39.5]} 16. Rfe1 {[%clk 0:02:41.4]} 16... h6
{[%clk 0:02:26]} 17. Nd2 {[%clk 0:02:36.3]} 17... Bg5 {[%clk 0:02:16.5]} 18.
Bxg5 {[%clk 0:02:31.3]} 18... hxg5 {[%clk 0:02:17.4]} 19. Nf1 {[%clk 0:02:29.6]}
19... Ne5 {[%clk 0:01:59.6]} 20. Bb5 {[%clk 0:02:28.4]} 20... Bc6 {[%clk
0:01:54.6]} 21. Bxc6 {[%clk 0:02:27.4]} 21... Nxc6 {[%clk 0:01:55.5]} 22. Rxe8+
{[%clk 0:02:25.7]} 22... Rxe8 {[%clk 0:01:55.1]} 23. Ne3 {[%clk 0:02:24.1]}
23... Rd8 {[%clk 0:01:44.7]} 24. a4 {[%clk 0:02:24]} 24... g6 {[%clk 0:01:40.5]}
25. Nc4 {[%clk 0:02:20.9]} 25... f6 {[%clk 0:01:29.3]} 26. Kf1 {[%clk 0:02:20]}
26... Kf7 {[%clk 0:01:29.5]} 27. Ke2 {[%clk 0:02:19.6]} 27... Ke6 {[%clk
0:01:29.2]} 28. Re1 {[%clk 0:02:08.4]} 28... b6 {[%clk 0:01:14.5]} 29. Kf3+
{[%clk 0:02:04.6]} 29... Kf7 {[%clk 0:01:11.6]} 30. Rb1 {[%clk 0:01:53.4]} 30...
Ke6 {[%clk 0:01:06.1]} 31. Ke4 {[%clk 0:01:53.1]} 31... f5+ {[%clk 0:00:59.5]}
32. Kf3 {[%clk 0:01:52]} 32... Ne5+ {[%clk 0:00:59.4]} 33. Nxe5 {[%clk
0:01:51.2]} 33... Kxe5 {[%clk 0:01:00.3]} 34. Re1+ {[%clk 0:01:49.6]} 34... Kf6
{[%clk 0:01:00]} 35. b4 {[%clk 0:01:41.2]} 35... Rd3+ {[%clk 0:00:51.3]} 36. Re3
{[%clk 0:01:40.1]} 36... Rxe3+ {[%clk 0:00:51.3]} 37. Kxe3 {[%clk 0:01:39.8]}
37... cxb4 {[%clk 0:00:51.5]} 38. cxb4 {[%clk 0:01:38.9]} 38... Ke5 {[%clk
0:00:52.4]} 39. g3 {[%clk 0:01:31.6]} 39... f4+ {[%clk 0:00:42.1]} 40. Kf3
{[%clk 0:01:22.6]} 40... a6 {[%clk 0:00:37.9]} 41. gxf4+ {[%clk 0:01:21.3]}
41... gxf4 {[%clk 0:00:37.6]} 42. Kg4 {[%clk 0:01:19.1]} 42... Ke4 {[%clk
0:00:35.8]} 43. h4 {[%clk 0:01:18.8]} 43... b5 {[%clk 0:00:30.9]} 44. a5 {[%clk
0:01:16.2]} 44... f3 {[%clk 0:00:24.1]} 45. Kg3 {[%clk 0:01:07.4]} 45... Kd3
{[%clk 0:00:23.8]} 46. Kxf3 {[%clk 0:01:07.4]} 46... Kc4 {[%clk 0:00:24.3]} 47.
Ke3 {[%clk 0:01:05.9]} 47... Kxb4 {[%clk 0:00:24.5]} 48. f4 {[%clk 0:01:05.8]}
48... Kxa5 {[%clk 0:00:16.2]} 49. f5 {[%clk 0:01:05.7]} 49... gxf5 {[%clk
0:00:16.4]} 50. h5 {[%clk 0:01:05.9]} 50... b4 {[%clk 0:00:16.9]} 51. h6 {[%clk
0:01:05.8]} 51... b3 {[%clk 0:00:17.5]} 52. Kd2 {[%clk 0:01:04.7]} 52... f4
{[%clk 0:00:15.2]} 53. h7 {[%clk 0:01:04.2]} 53... f3 {[%clk 0:00:16.1]} 54.
h8=Q {[%clk 0:01:03.9]} 54... f2 {[%clk 0:00:17]} 55. Qe5+ {[%clk 0:00:59.4]}
55... Ka4 {[%clk 0:00:17]} 56. Qa1+ {[%clk 0:00:59.8]} 56... Kb4 {[%clk
0:00:17]} 57. Kd3 {[%clk 0:00:57.1]} 57... a5 {[%clk 0:00:15.6]} 58. Qf1 {[%clk
0:00:54.1]} 58... b2 {[%clk 0:00:13.9]} 59. Kc2 {[%clk 0:00:52.9]} 59... Ka3
{[%clk 0:00:14.1]} 60. Qb1 {[%clk 0:00:52.6]} 60... f1=Q {[%clk 0:00:13.3]} 61.
Qxf1 {[%clk 0:00:52.3]} 61... a4 {[%clk 0:00:14.2]} 62. Qb1 {[%clk 0:00:52]}
62... Kb4 {[%clk 0:00:14.4]} 63. Qxb2+ {[%clk 0:00:52.9]} 63... Ka5 {[%clk
0:00:15.3]} 64. Qa3 {[%clk 0:00:53]} 64... Kb5 {[%clk 0:00:11.3]} 65. Kc3 {[%clk
0:00:53.9]} 65... Ka5 {[%clk 0:00:12.2]} 66. Qb4+ {[%clk 0:00:53.4]} 66... Ka6
{[%clk 0:00:11.9]} 67. Qxa4+ {[%clk 0:00:54.1]} 1-0

[Event "*** Titled Tuesday Blitz"]
[Site "Chess.com"]
[Date "2020.04.21"]
[Round "2"]
[White "Zubrrr"]
[Black "volcanoexplorer"]
[Result "0-1"]
[WhiteElo "2677"]
[BlackElo "2496"]
[TimeControl "180+1"]
[EndTime "10:18:17 PDT"]
[Termination "volcanoexplorer won by checkmate"]

1. c4 {[%clk 0:03:00.9]} 1... e5 {[%clk 0:02:59.4]} 2. g3 {[%clk 0:03:01.1]}
2... Nc6 {[%clk 0:02:59.8]} 3. Nc3 {[%clk 0:03:01.2]} 3... Nf6 {[%clk
0:03:00.4]} 4. Bg2 {[%clk 0:03:01.2]} 4... g6 {[%clk 0:03:01]} 5. Nf3 {[%clk
0:03:01.6]} 5... Bg7 {[%clk 0:03:01.4]} 6. O-O {[%clk 0:03:01.9]} 6... O-O
{[%clk 0:03:01.9]} 7. d3 {[%clk 0:02:57]} 7... d6 {[%clk 0:03:01.4]} 8. Ne1
{[%clk 0:02:53.5]} 8... h6 {[%clk 0:02:58.8]} 9. Nc2 {[%clk 0:02:53.5]} 9... Be6
{[%clk 0:02:51.4]} 10. Nd5 {[%clk 0:02:53.4]} 10... Ne8 {[%clk 0:02:49]} 11. b4
{[%clk 0:02:47.7]} 11... Rb8 {[%clk 0:02:35.6]} 12. b5 {[%clk 0:02:43.4]} 12...
Ne7 {[%clk 0:02:34.3]} 13. Rb1 {[%clk 0:02:24.5]} 13... f5 {[%clk 0:02:22.5]}
14. Be3 {[%clk 0:02:22.3]} 14... Bxd5 {[%clk 0:01:09]} 15. cxd5 {[%clk 0:02:21]}
15... Nf6 {[%clk 0:01:03.3]} 16. Nb4 {[%clk 0:02:11.1]} 16... Ra8 {[%clk
0:01:01.2]} 17. Qc2 {[%clk 0:01:40.8]} 17... Qd7 {[%clk 0:00:54.1]} 18. Rfc1
{[%clk 0:01:36.4]} 18... Rfc8 {[%clk 0:00:53]} 19. Qc4 {[%clk 0:01:34.1]} 19...
g5 {[%clk 0:00:48]} 20. Rc2 {[%clk 0:01:12.8]} 20... f4 {[%clk 0:00:34.8]} 21.
Bd2 {[%clk 0:01:12.9]} 21... h5 {[%clk 0:00:30.2]} 22. Rbc1 {[%clk 0:01:07.5]}
22... Nf5 {[%clk 0:00:29.5]} 23. e3 {[%clk 0:01:01.9]} 23... fxe3 {[%clk
0:00:23.1]} 24. fxe3 {[%clk 0:01:01.1]} 24... g4 {[%clk 0:00:22.1]} 25. a4
{[%clk 0:00:40.5]} 25... h4 {[%clk 0:00:21.2]} 26. gxh4 {[%clk 0:00:21.9]} 26...
Nxh4 {[%clk 0:00:22.1]} 27. Rf1 {[%clk 0:00:17.1]} 27... Ng6 {[%clk 0:00:21.1]}
28. Be1 {[%clk 0:00:16.6]} 28... e4 {[%clk 0:00:16.4]} 29. dxe4 {[%clk
0:00:13.2]} 29... Ne5 {[%clk 0:00:16.8]} 30. Qe2 {[%clk 0:00:13.3]} 30... Rf8
{[%clk 0:00:16.8]} 31. Bg3 {[%clk 0:00:13.3]} 31... Nh5 {[%clk 0:00:13.5]} 32.
Bf4 {[%clk 0:00:05.2]} 32... Ng6 {[%clk 0:00:12]} 33. Nd3 {[%clk 0:00:04.8]}
33... Rf7 {[%clk 0:00:11.1]} 34. Rfc1 {[%clk 0:00:03.5]} 34... Nhxf4 {[%clk
0:00:06.2]} 35. exf4 {[%clk 0:00:04.4]} 35... Bd4+ {[%clk 0:00:06.4]} 36. Kh1
{[%clk 0:00:04.5]} 36... Bb6 {[%clk 0:00:06.9]} 37. f5 {[%clk 0:00:04.3]} 37...
Ne5 {[%clk 0:00:05.8]} 38. Nxe5 {[%clk 0:00:04.8]} 38... dxe5 {[%clk 0:00:06.7]}
39. Qxg4+ {[%clk 0:00:05.3]} 39... Rg7 {[%clk 0:00:07.5]} 40. Qf3 {[%clk
0:00:05.5]} 40... Rf8 {[%clk 0:00:06.5]} 41. Bh3 {[%clk 0:00:05.9]} 41... Rf6
{[%clk 0:00:06.8]} 42. Rg2 {[%clk 0:00:05.9]} 42... Qf7 {[%clk 0:00:06]} 43.
Rcc2 {[%clk 0:00:05.9]} 43... Rxg2 {[%clk 0:00:02.5]} 44. Rxg2+ {[%clk
0:00:05.5]} 44... Kf8 {[%clk 0:00:03.4]} 45. Bg4 {[%clk 0:00:05.9]} 45... Rh6
{[%clk 0:00:03.8]} 46. Rg3 {[%clk 0:00:05.6]} 46... Qe7 {[%clk 0:00:04.2]} 47.
Rh3 {[%clk 0:00:04.3]} 47... Qc5 {[%clk 0:00:04.3]} 48. Rg3 {[%clk 0:00:03.3]}
48... Qc1+ {[%clk 0:00:03.6]} 49. Kg2 {[%clk 0:00:03]} 49... Qg1# {[%clk
0:00:03.8]} 0-1